[Event "Early-Titled-Tuesday-Blitz-January-16-2024"]
[Site "Chess.com"]
[Date "2024.01.16"]
[Round "9"]
[White "R2D2PTY"]
[Black "pfalcon1949"]
[Result "1-0"]
[WhiteElo "2229"]
[BlackElo "1982"]
[TimeControl "180+1"]
[EndTime "9:48:33 PST"]
[Termination "R2D2PTY won on time"]

1. e4 {[%clk 0:03:00.9]} 1... e6 {[%clk 0:02:52.9]} 2. d4 {[%clk 0:03:00.6]}
2... d5 {[%clk 0:02:51.8]} 3. Nd2 {[%clk 0:03:01.5]} 3... Nc6 {[%clk 0:02:49.5]}
4. c3 {[%clk 0:02:59.4]} 4... e5 {[%clk 0:02:46.5]} 5. exd5 {[%clk 0:02:56.9]}
5... Qxd5 {[%clk 0:02:44.8]} 6. Ngf3 {[%clk 0:02:51]} 6... e4 {[%clk 0:02:40.2]}
7. Bc4 {[%clk 0:02:46.3]} 7... Qf5 {[%clk 0:02:33.3]} 8. Qe2 {[%clk 0:02:32.3]}
8... Nf6 {[%clk 0:02:27.4]} 9. O-O {[%clk 0:02:26.5]} 9... Be7 {[%clk
0:02:26.9]} 10. Ne1 {[%clk 0:02:07.2]} 10... O-O {[%clk 0:02:22.4]} 11. f3
{[%clk 0:02:01.5]} 11... e3 {[%clk 0:02:05.2]} 12. Qxe3 {[%clk 0:01:37.1]} 12...
Re8 {[%clk 0:02:05.3]} 13. Bd3 {[%clk 0:01:31.1]} 13... Qh5 {[%clk 0:02:04.1]}
14. Qf2 {[%clk 0:01:26.3]} 14... Bd6 {[%clk 0:02:01.1]} 15. g3 {[%clk
0:01:16.4]} 15... Bh3 {[%clk 0:01:57.8]} 16. Ng2 {[%clk 0:01:14.9]} 16... Re7
{[%clk 0:01:36.7]} 17. Ne4 {[%clk 0:01:12.5]} 17... Nxe4 {[%clk 0:01:28]} 18.
fxe4 {[%clk 0:01:13.4]} 18... f6 {[%clk 0:01:16.6]} 19. e5 {[%clk 0:00:36]}
19... fxe5 {[%clk 0:01:10.5]} 20. Bc4+ {[%clk 0:00:36.7]} 20... Be6 {[%clk
0:00:56.8]} 21. d5 {[%clk 0:00:30.3]} 21... Na5 {[%clk 0:00:40.9]} 22. b3 {[%clk
0:00:19.4]} 22... Nxc4 {[%clk 0:00:39.2]} 23. bxc4 {[%clk 0:00:20.3]} 23... Bd7
{[%clk 0:00:35.2]} 24. Ne3 {[%clk 0:00:20.7]} 24... Rae8 {[%clk 0:00:31.8]} 25.
Bd2 {[%clk 0:00:19.2]} 25... b6 {[%clk 0:00:31.4]} 26. Rae1 {[%clk 0:00:18.1]}
26... Bh3 {[%clk 0:00:30.1]} 27. Ng2 {[%clk 0:00:17.3]} 27... Rd7 {[%clk
0:00:22.6]} 28. Be3 {[%clk 0:00:17.4]} 28... Rf8 {[%clk 0:00:20.5]} 29. Qd2
{[%clk 0:00:16.4]} 29... Rxf1+ {[%clk 0:00:20.8]} 30. Rxf1 {[%clk 0:00:17.3]}
30... Rd8 {[%clk 0:00:19.3]} 31. Re1 {[%clk 0:00:15.4]} 31... Qg6 {[%clk
0:00:18.9]} 32. Bf2 {[%clk 0:00:15.3]} 32... h6 {[%clk 0:00:17.9]} 33. Nh4
{[%clk 0:00:15.6]} 33... Qg4 {[%clk 0:00:17.1]} 34. Be3 {[%clk 0:00:14.5]} 34...
e4 {[%clk 0:00:14.1]} 35. Bf2 {[%clk 0:00:15]} 35... g5 {[%clk 0:00:12.4]} 36.
Ng2 {[%clk 0:00:13]} 36... Re8 {[%clk 0:00:12.4]} 37. Ne3 {[%clk 0:00:13.3]}
37... Qh5 {[%clk 0:00:10.8]} 38. Qd4 {[%clk 0:00:13]} 38... Bc5 {[%clk 0:00:09]}
39. Qf6 {[%clk 0:00:11.9]} 39... Bxe3 {[%clk 0:00:09.9]} 40. Rxe3 {[%clk
0:00:11.2]} 40... Qd1+ {[%clk 0:00:08.5]} 41. Re1 {[%clk 0:00:11.2]} 41... Qh5
{[%clk 0:00:07.2]} 42. c5 {[%clk 0:00:09.9]} 42... Rf8 {[%clk 0:00:07.3]} 43.
Qd4 {[%clk 0:00:08.1]} 43... bxc5 {[%clk 0:00:06.1]} 44. Qxe4 {[%clk 0:00:08.1]}
44... Kh8 {[%clk 0:00:05.3]} 45. Bxc5 {[%clk 0:00:07.9]} 45... Qe2 {[%clk
0:00:02.5]} 46. Bd4+ {[%clk 0:00:08.8]} 46... Kg8 {[%clk 0:00:01.3]} 47. Qxe2
{[%clk 0:00:09.2]} 1-0

[Event "Early-Titled-Tuesday-Blitz-January-16-2024"]
[Site "Chess.com"]
[Date "2024.01.16"]
[Round "9"]
[White "NoHeThTo"]
[Black "karinachess1"]
[Result "1-0"]
[WhiteElo "2718"]
[BlackElo "2610"]
[TimeControl "180+1"]
[EndTime "9:48:36 PST"]
[Termination "NoHeThTo won by resignation"]

1. d4 {[%clk 0:02:46.8]} 1... Nf6 {[%clk 0:02:59.8]} 2. Nc3 {[%clk 0:02:44.8]}
2... d5 {[%clk 0:02:59.5]} 3. Bf4 {[%clk 0:02:39.2]} 3... g6 {[%clk 0:02:58.6]}
4. e3 {[%clk 0:02:39.3]} 4... Bg7 {[%clk 0:02:58.6]} 5. h4 {[%clk 0:02:39.8]}
5... h5 {[%clk 0:02:58.6]} 6. Nf3 {[%clk 0:02:40]} 6... O-O {[%clk 0:02:58.6]}
7. Ne5 {[%clk 0:02:40.3]} 7... c5 {[%clk 0:02:55.3]} 8. dxc5 {[%clk 0:02:40.5]}
8... Qa5 {[%clk 0:02:55.1]} 9. Qd2 {[%clk 0:02:40.7]} 9... Qxc5 {[%clk
0:02:54.3]} 10. Be2 {[%clk 0:02:36.6]} 10... Nc6 {[%clk 0:02:38.6]} 11. O-O
{[%clk 0:02:33.7]} 11... Nxe5 {[%clk 0:02:28.2]} 12. Bxe5 {[%clk 0:02:32.6]}
12... Be6 {[%clk 0:02:28.3]} 13. Bf3 {[%clk 0:02:16.9]} 13... Rfd8 {[%clk
0:02:22.7]} 14. Rfd1 {[%clk 0:02:14.4]} 14... Rd7 {[%clk 0:01:58.8]} 15. Qd4
{[%clk 0:02:05.3]} 15... Qxd4 {[%clk 0:01:48.3]} 16. Rxd4 {[%clk 0:02:06.2]}
16... Rc8 {[%clk 0:01:40.3]} 17. Rad1 {[%clk 0:02:02.8]} 17... b6 {[%clk
0:01:28.1]} 18. Be2 {[%clk 0:01:42]} 18... Rc5 {[%clk 0:00:55]} 19. Bb5 {[%clk
0:01:30.7]} 19... Rd8 {[%clk 0:00:55.1]} 20. a4 {[%clk 0:01:30]} 20... Rdc8
{[%clk 0:00:48.1]} 21. Ba6 {[%clk 0:01:25.4]} 21... Rd8 {[%clk 0:00:41.6]} 22.
e4 {[%clk 0:01:12.1]} 22... Ng4 {[%clk 0:00:25.6]} 23. Bxg7 {[%clk 0:01:09.9]}
23... Kxg7 {[%clk 0:00:26.5]} 24. exd5 {[%clk 0:01:08]} 24... Bf5 {[%clk
0:00:26.6]} 25. R1d2 {[%clk 0:01:01.8]} 25... Nf6 {[%clk 0:00:19.8]} 26. f3
{[%clk 0:01:00.1]} 26... Rd6 {[%clk 0:00:16.3]} 27. Kf2 {[%clk 0:00:58.2]} 27...
Bd7 {[%clk 0:00:15.1]} 28. Bf1 {[%clk 0:00:39.6]} 28... a5 {[%clk 0:00:13.7]}
29. Ne4 {[%clk 0:00:31.8]} 29... Nxe4+ {[%clk 0:00:13.7]} 30. fxe4 {[%clk
0:00:31.7]} 30... Kf6 {[%clk 0:00:11.8]} 31. c3 {[%clk 0:00:31.9]} 31... Ke5
{[%clk 0:00:11.7]} 32. Ke3 {[%clk 0:00:31.8]} 32... Rf6 {[%clk 0:00:11.6]} 33.
Rf2 {[%clk 0:00:26.9]} 33... Rxf2 {[%clk 0:00:11.3]} 34. Kxf2 {[%clk 0:00:27.8]}
34... Bg4 {[%clk 0:00:11.1]} 35. Ke3 {[%clk 0:00:27.4]} 35... Bd7 {[%clk
0:00:10.9]} 36. Ba6 {[%clk 0:00:26.7]} 36... Rc7 {[%clk 0:00:10.6]} 37. Be2
{[%clk 0:00:23.7]} 37... Rc5 {[%clk 0:00:10.3]} 38. Kd3 {[%clk 0:00:17.7]} 38...
Rc7 {[%clk 0:00:09.6]} 39. Bf3 {[%clk 0:00:17.1]} 39... f6 {[%clk 0:00:08.7]}
40. Ke3 {[%clk 0:00:15.9]} 40... Rc5 {[%clk 0:00:08.8]} 41. Be2 {[%clk
0:00:16.2]} 41... Rc7 {[%clk 0:00:09.1]} 42. Bc4 {[%clk 0:00:15.4]} 42... Bxa4
{[%clk 0:00:08.2]} 43. d6 {[%clk 0:00:14.8]} 43... exd6 {[%clk 0:00:06.3]} 44.
Rd5+ {[%clk 0:00:13.6]} 44... Ke6 {[%clk 0:00:07]} 45. b3 {[%clk 0:00:12.7]}
45... Bc6 {[%clk 0:00:05.5]} 46. Rxh5+ {[%clk 0:00:12.1]} 46... Kd7 {[%clk
0:00:05.1]} 47. Rh7+ {[%clk 0:00:12.5]} 47... Kc8 {[%clk 0:00:05.4]} 48. Rxc7+
{[%clk 0:00:13.4]} 48... Kxc7 {[%clk 0:00:06.3]} 49. Bf7 {[%clk 0:00:13.8]}
49... g5 {[%clk 0:00:06.4]} 50. h5 {[%clk 0:00:14.3]} 50... d5 {[%clk
0:00:05.4]} 51. h6 {[%clk 0:00:14]} 51... Be8 {[%clk 0:00:04.5]} 52. Bxe8 {[%clk
0:00:13.9]} 1-0

[Event "Early-Titled-Tuesday-Blitz-January-16-2024"]
[Site "Chess.com"]
[Date "2024.01.16"]
[Round "9"]
[White "01Roman"]
[Black "Nouali_Mohamed"]
[Result "1-0"]
[WhiteElo "2490"]
[BlackElo "2576"]
[TimeControl "180+1"]
[EndTime "9:48:36 PST"]
[Termination "01Roman won on time"]

1. Nf3 {[%clk 0:02:33.2]} 1... Nf6 {[%clk 0:02:57.6]} 2. c4 {[%clk 0:02:30.7]}
2... g6 {[%clk 0:02:57.9]} 3. Nc3 {[%clk 0:02:28.7]} 3... Bg7 {[%clk 0:02:57.4]}
4. e4 {[%clk 0:02:28.5]} 4... d6 {[%clk 0:02:57.7]} 5. d4 {[%clk 0:02:28.9]}
5... O-O {[%clk 0:02:57.4]} 6. Be2 {[%clk 0:02:25.9]} 6... c5 {[%clk 0:02:57.7]}
7. O-O {[%clk 0:02:25.2]} 7... cxd4 {[%clk 0:02:57.7]} 8. Nxd4 {[%clk 0:02:26]}
8... Nc6 {[%clk 0:02:58.4]} 9. Be3 {[%clk 0:02:25.5]} 9... Nxd4 {[%clk
0:02:58.8]} 10. Bxd4 {[%clk 0:02:26.4]} 10... Be6 {[%clk 0:02:59.7]} 11. f4
{[%clk 0:02:26.3]} 11... Rc8 {[%clk 0:02:53.5]} 12. b3 {[%clk 0:02:26.1]} 12...
a6 {[%clk 0:02:51.9]} 13. Qd3 {[%clk 0:02:20.2]} 13... Bg4 {[%clk 0:02:35.9]}
14. Bxg4 {[%clk 0:02:08]} 14... Nxg4 {[%clk 0:02:36.7]} 15. Bxg7 {[%clk
0:02:07.9]} 15... Kxg7 {[%clk 0:02:37.6]} 16. Qd4+ {[%clk 0:02:07.8]} 16... e5
{[%clk 0:02:37.7]} 17. fxe5 {[%clk 0:01:59.1]} 17... dxe5 {[%clk 0:02:38]} 18.
Qxd8 {[%clk 0:01:57.8]} 18... Rcxd8 {[%clk 0:02:38]} 19. Nd5 {[%clk 0:01:58.5]}
19... f5 {[%clk 0:02:26.7]} 20. h3 {[%clk 0:01:56.9]} 20... Nf6 {[%clk
0:02:25.4]} 21. Nxf6 {[%clk 0:01:54.2]} 21... Kxf6 {[%clk 0:02:21]} 22. exf5
{[%clk 0:01:32.7]} 22... gxf5 {[%clk 0:02:20.7]} 23. Rad1 {[%clk 0:01:27.2]}
23... e4 {[%clk 0:02:14.5]} 24. Rxd8 {[%clk 0:01:23.9]} 24... Rxd8 {[%clk
0:02:15.3]} 25. g4 {[%clk 0:01:24.4]} 25... Ke5 {[%clk 0:01:43.6]} 26. Rxf5+
{[%clk 0:01:22.1]} 26... Kd4 {[%clk 0:01:40.9]} 27. Kf2 {[%clk 0:01:20.1]} 27...
Kd3 {[%clk 0:01:29.3]} 28. Rd5+ {[%clk 0:01:07.4]} 28... Rxd5 {[%clk 0:01:28.4]}
29. cxd5 {[%clk 0:01:08.3]} 29... Kd2 {[%clk 0:01:27.9]} 30. d6 {[%clk
0:01:07.6]} 30... e3+ {[%clk 0:01:28.8]} 31. Kf3 {[%clk 0:01:07]} 31... e2
{[%clk 0:01:29.7]} 32. d7 {[%clk 0:01:07.5]} 32... e1=Q {[%clk 0:01:30.6]} 33.
d8=Q+ {[%clk 0:01:07.1]} 33... Kc2 {[%clk 0:01:22.7]} 34. Qc7+ {[%clk
0:01:04.9]} 34... Kb1 {[%clk 0:01:21.5]} 35. Qxh7+ {[%clk 0:01:04.8]} 35... Kxa2
{[%clk 0:01:17.7]} 36. Qd3 {[%clk 0:01:02.6]} 36... Qh1+ {[%clk 0:00:41.5]} 37.
Kg3 {[%clk 0:01:02.4]} 37... Qe1+ {[%clk 0:00:40.9]} 38. Kf4 {[%clk 0:01:01.6]}
38... b5 {[%clk 0:00:19.8]} 39. g5 {[%clk 0:01:00.2]} 39... Qh4+ {[%clk
0:00:14.4]} 40. Kf5 {[%clk 0:00:59.8]} 40... b4 {[%clk 0:00:04.3]} 41. g6 {[%clk
0:00:56.5]} 41... a5 {[%clk 0:00:02.8]} 42. Qe2+ {[%clk 0:00:35.9]} 42... Kxb3
{[%clk 0:00:03.1]} 43. g7 {[%clk 0:00:35.1]} 43... Qd8 {[%clk 0:00:01.4]} 44.
Qe6+ {[%clk 0:00:32.8]} 44... Ka3 {[%clk 0:00:01.1]} 45. g8=Q {[%clk 0:00:33.7]}
45... Qd3+ {[%clk 0:00:01.3]} 46. Kf6 {[%clk 0:00:30]} 1-0

[Event "Early-Titled-Tuesday-Blitz-January-16-2024"]
[Site "Chess.com"]
[Date "2024.01.16"]
[Round "9"]
[White "Durarbayli"]
[Black "Zhigalko_Sergei"]
[Result "1-0"]
[WhiteElo "2858"]
[BlackElo "2950"]
[TimeControl "180+1"]
[EndTime "9:48:39 PST"]
[Termination "Durarbayli won on time"]

1. e4 {[%clk 0:03:00.9]} 1... c5 {[%clk 0:03:00.2]} 2. Nf3 {[%clk 0:03:01]} 2...
Nc6 {[%clk 0:03:00.9]} 3. d4 {[%clk 0:03:01.6]} 3... cxd4 {[%clk 0:03:01.8]} 4.
Nxd4 {[%clk 0:03:02.2]} 4... Nf6 {[%clk 0:03:02.4]} 5. Nc3 {[%clk 0:03:02.7]}
5... e5 {[%clk 0:03:03]} 6. Ndb5 {[%clk 0:03:03.4]} 6... d6 {[%clk 0:03:03.5]}
7. Bg5 {[%clk 0:03:03.8]} 7... a6 {[%clk 0:03:03.6]} 8. Na3 {[%clk 0:03:04.5]}
8... b5 {[%clk 0:03:04.1]} 9. Nd5 {[%clk 0:03:04.9]} 9... Be7 {[%clk 0:03:04]}
10. Bxf6 {[%clk 0:03:05]} 10... Bxf6 {[%clk 0:03:04.9]} 11. c4 {[%clk
0:03:05.4]} 11... b4 {[%clk 0:03:05.3]} 12. Nc2 {[%clk 0:03:04.9]} 12... O-O
{[%clk 0:03:05.5]} 13. Qf3 {[%clk 0:03:04.8]} 13... Be7 {[%clk 0:02:43.1]} 14.
O-O-O {[%clk 0:02:50.6]} 14... Be6 {[%clk 0:02:35]} 15. Kb1 {[%clk 0:02:38.7]}
15... a5 {[%clk 0:02:32]} 16. Be2 {[%clk 0:02:20.7]} 16... Qb8 {[%clk
0:02:15.7]} 17. Qg3 {[%clk 0:02:10.9]} 17... Bd8 {[%clk 0:02:10.2]} 18. Bg4
{[%clk 0:02:01.8]} 18... b3 {[%clk 0:02:03.3]} 19. axb3 {[%clk 0:02:02]} 19...
Bxg4 {[%clk 0:02:03.2]} 20. Qxg4 {[%clk 0:02:02.1]} 20... Qxb3 {[%clk
0:02:03.7]} 21. Nce3 {[%clk 0:01:30.4]} 21... a4 {[%clk 0:01:11.9]} 22. Nf5
{[%clk 0:01:09.7]} 22... g6 {[%clk 0:01:11.9]} 23. Qg3 {[%clk 0:01:09.9]} 23...
Qb8 {[%clk 0:00:25.2]} 24. h4 {[%clk 0:00:24.1]} 24... a3 {[%clk 0:00:25.6]} 25.
b3 {[%clk 0:00:24.7]} 25... Kh8 {[%clk 0:00:26.1]} 26. Nh6 {[%clk 0:00:21.2]}
26... a2+ {[%clk 0:00:17.9]} 27. Ka1 {[%clk 0:00:20.8]} 27... Nd4 {[%clk
0:00:11.8]} 28. Rxd4 {[%clk 0:00:20.2]} 28... exd4 {[%clk 0:00:12.7]} 29. h5
{[%clk 0:00:15.8]} 29... Ra7 {[%clk 0:00:04.7]} 30. Qd3 {[%clk 0:00:13.1]} 30...
Kg7 {[%clk 0:00:02.4]} 31. Qxd4+ {[%clk 0:00:08.7]} 31... f6 {[%clk 0:00:02.8]}
32. Ng4 {[%clk 0:00:07.3]} 32... Raf7 {[%clk 0:00:03]} 33. Qc3 {[%clk
0:00:05.8]} 33... Qa7 {[%clk 0:00:02.7]} 34. f4 {[%clk 0:00:05.2]} 34... Kg8
{[%clk 0:00:02.3]} 35. Nh6+ {[%clk 0:00:04.2]} 35... Kg7 {[%clk 0:00:02.9]} 36.
Nxf7 {[%clk 0:00:05.1]} 36... Rxf7 {[%clk 0:00:03.7]} 37. hxg6 {[%clk
0:00:05.8]} 37... hxg6 {[%clk 0:00:04.6]} 38. Qh3 {[%clk 0:00:05.2]} 38... Qd4+
{[%clk 0:00:04.9]} 39. Nc3 {[%clk 0:00:05.8]} 39... Kf8 {[%clk 0:00:04.5]} 40.
Rd1 {[%clk 0:00:05.7]} 40... Qc5 {[%clk 0:00:02.8]} 41. Qh8+ {[%clk 0:00:05.5]}
41... Ke7 {[%clk 0:00:03.1]} 42. e5 {[%clk 0:00:04]} 42... Ba5 {[%clk
0:00:02.1]} 43. Nd5+ {[%clk 0:00:03.8]} 43... Kd7 {[%clk 0:00:02.1]} 44. e6+
{[%clk 0:00:04.5]} 44... Kc6 {[%clk 0:00:01.6]} 45. Qe8+ {[%clk 0:00:04.9]}
45... Kb7 {[%clk 0:00:01.3]} 46. exf7 {[%clk 0:00:05.4]} 46... Ka6 {[%clk
0:00:02]} 47. Qb5+ {[%clk 0:00:05.2]} 47... Qxb5 {[%clk 0:00:02.3]} 48. cxb5+
{[%clk 0:00:06.1]} 48... Kxb5 {[%clk 0:00:03.2]} 49. f8=Q {[%clk 0:00:07]} 1-0

[Event "Early-Titled-Tuesday-Blitz-January-16-2024"]
[Site "Chess.com"]
[Date "2024.01.16"]
[Round "9"]
[White "NastyaHn"]
[Black "rhungaski"]
[Result "1-0"]
[WhiteElo "2346"]
[BlackElo "2522"]
[TimeControl "180+1"]
[EndTime "9:48:39 PST"]
[Termination "NastyaHn won on time"]

1. Nc3 {[%clk 0:03:00.1]} 1... g6 {[%clk 0:02:57.5]} 2. e4 {[%clk 0:02:59.4]}
2... Bg7 {[%clk 0:02:56.7]} 3. d4 {[%clk 0:02:59.6]} 3... d6 {[%clk 0:02:55.7]}
4. f4 {[%clk 0:02:59.8]} 4... a6 {[%clk 0:02:55.2]} 5. Nf3 {[%clk 0:03:00]} 5...
b5 {[%clk 0:02:54.1]} 6. a3 {[%clk 0:02:47.5]} 6... Nd7 {[%clk 0:02:43.7]} 7.
Be3 {[%clk 0:02:44.6]} 7... Bb7 {[%clk 0:02:33.4]} 8. e5 {[%clk 0:02:35.4]} 8...
c5 {[%clk 0:02:28.6]} 9. dxc5 {[%clk 0:02:31.3]} 9... dxe5 {[%clk 0:02:16.7]}
10. Nxe5 {[%clk 0:02:20.7]} 10... Nxe5 {[%clk 0:02:14.1]} 11. fxe5 {[%clk
0:02:14.6]} 11... Bxe5 {[%clk 0:02:09.7]} 12. Qxd8+ {[%clk 0:02:05.4]} 12...
Rxd8 {[%clk 0:02:10.6]} 13. Rd1 {[%clk 0:02:05.3]} 13... Nf6 {[%clk 0:01:54.2]}
14. Rxd8+ {[%clk 0:01:54.8]} 14... Kxd8 {[%clk 0:01:55.1]} 15. h3 {[%clk
0:01:50]} 15... Kc7 {[%clk 0:01:44.7]} 16. Kf2 {[%clk 0:01:49.1]} 16... Bxc3
{[%clk 0:01:28.7]} 17. bxc3 {[%clk 0:01:48.6]} 17... Ne4+ {[%clk 0:01:28.7]} 18.
Ke1 {[%clk 0:01:46.6]} 18... e5 {[%clk 0:01:25.4]} 19. c4 {[%clk 0:01:44.5]}
19... Bc6 {[%clk 0:01:18.2]} 20. Bd3 {[%clk 0:01:38]} 20... Ng3 {[%clk
0:01:14.7]} 21. Rg1 {[%clk 0:01:34.5]} 21... h5 {[%clk 0:01:11.3]} 22. cxb5
{[%clk 0:01:19.7]} 22... axb5 {[%clk 0:01:12.2]} 23. c4 {[%clk 0:01:19.5]} 23...
bxc4 {[%clk 0:01:09.9]} 24. Bxc4 {[%clk 0:01:19]} 24... f5 {[%clk 0:01:08.8]}
25. Kd1 {[%clk 0:00:57.4]} 25... Rd8+ {[%clk 0:01:00.4]} 26. Kc2 {[%clk
0:00:54]} 26... f4 {[%clk 0:00:54]} 27. Bc1 {[%clk 0:00:46.1]} 27... Be4+ {[%clk
0:00:44.6]} 28. Kc3 {[%clk 0:00:42]} 28... h4 {[%clk 0:00:35.4]} 29. Re1 {[%clk
0:00:37]} 29... g5 {[%clk 0:00:19.6]} 30. Kb4 {[%clk 0:00:32.3]} 30... Re8
{[%clk 0:00:18.6]} 31. Bb2 {[%clk 0:00:22.1]} 31... Re7 {[%clk 0:00:17.3]} 32.
a4 {[%clk 0:00:19.7]} 32... Kc6 {[%clk 0:00:17.9]} 33. Bb5+ {[%clk 0:00:19]}
33... Kb7 {[%clk 0:00:18.1]} 34. a5 {[%clk 0:00:16]} 34... Bxg2 {[%clk
0:00:18.1]} 35. Rxe5 {[%clk 0:00:14.5]} 35... Rxe5 {[%clk 0:00:18]} 36. Bxe5
{[%clk 0:00:14.7]} 36... f3 {[%clk 0:00:18.6]} 37. a6+ {[%clk 0:00:14.6]} 37...
Ka7 {[%clk 0:00:18.7]} 38. Bd4 {[%clk 0:00:13.5]} 38... Nf5 {[%clk 0:00:17.6]}
39. Bf2 {[%clk 0:00:12.8]} 39... Bxh3 {[%clk 0:00:13.5]} 40. c6+ {[%clk
0:00:12.8]} 40... Ka8 {[%clk 0:00:12]} 41. c7 {[%clk 0:00:11.7]} 41... Ne7
{[%clk 0:00:12.5]} 42. Bd3 {[%clk 0:00:07.4]} 42... Nc6+ {[%clk 0:00:04.8]} 43.
Kb5 {[%clk 0:00:03.1]} 43... Na7+ {[%clk 0:00:04]} 44. Kc4 {[%clk 0:00:02.3]}
44... Be6+ {[%clk 0:00:02]} 45. Kd4 {[%clk 0:00:02.2]} 1-0

[Event "Early-Titled-Tuesday-Blitz-January-16-2024"]
[Site "Chess.com"]
[Date "2024.01.16"]
[Round "9"]
[White "Kaissa10"]
[Black "DanilNajdin"]
[Result "0-1"]
[WhiteElo "2272"]
[BlackElo "2491"]
[TimeControl "180+1"]
[EndTime "9:48:43 PST"]
[Termination "DanilNajdin won by checkmate"]

1. c4 {[%clk 0:02:59.7]} 1... e6 {[%clk 0:02:58.5]} 2. Nf3 {[%clk 0:02:59.1]}
2... d5 {[%clk 0:02:58.6]} 3. g3 {[%clk 0:02:58.5]} 3... Nf6 {[%clk 0:02:50.6]}
4. Bg2 {[%clk 0:02:58.1]} 4... dxc4 {[%clk 0:02:51.1]} 5. Qa4+ {[%clk
0:02:55.7]} 5... Bd7 {[%clk 0:02:50.8]} 6. Qxc4 {[%clk 0:02:55.3]} 6... c5
{[%clk 0:02:50.5]} 7. O-O {[%clk 0:02:51.3]} 7... b5 {[%clk 0:02:45.6]} 8. Qc2
{[%clk 0:02:50.7]} 8... Nc6 {[%clk 0:02:45.2]} 9. Nc3 {[%clk 0:02:49.8]} 9... a6
{[%clk 0:02:40.8]} 10. d3 {[%clk 0:02:39.5]} 10... Be7 {[%clk 0:02:39.8]} 11.
Bg5 {[%clk 0:02:22.4]} 11... O-O {[%clk 0:02:38.7]} 12. Bxf6 {[%clk 0:02:21.6]}
12... Bxf6 {[%clk 0:02:38.5]} 13. Ne4 {[%clk 0:02:22.1]} 13... Rc8 {[%clk
0:02:26.4]} 14. Rac1 {[%clk 0:02:00.3]} 14... Be7 {[%clk 0:02:07.2]} 15. Qd2
{[%clk 0:01:32.5]} 15... Qb6 {[%clk 0:01:55.5]} 16. Qe3 {[%clk 0:01:15.5]} 16...
Nb4 {[%clk 0:01:51.7]} 17. Ne5 {[%clk 0:01:11.8]} 17... Nd5 {[%clk 0:01:28.6]}
18. Nxd7 {[%clk 0:01:11.1]} 18... Qa7 {[%clk 0:01:22.1]} 19. Ndf6+ {[%clk
0:00:56.7]} 19... Nxf6 {[%clk 0:01:17.8]} 20. Nxf6+ {[%clk 0:00:50.5]} 20...
Bxf6 {[%clk 0:01:18.7]} 21. b4 {[%clk 0:00:49.8]} 21... Bd4 {[%clk 0:01:16.9]}
22. Qd2 {[%clk 0:00:40.2]} 22... cxb4 {[%clk 0:01:02.7]} 23. Rxc8 {[%clk
0:00:38.7]} 23... Rxc8 {[%clk 0:01:03.6]} 24. Qxb4 {[%clk 0:00:38.3]} 24... Qc5
{[%clk 0:00:49.1]} 25. Qa5 {[%clk 0:00:19.4]} 25... Qb6 {[%clk 0:00:48.7]} 26.
Qa3 {[%clk 0:00:17.4]} 26... b4 {[%clk 0:00:46.7]} 27. Qa4 {[%clk 0:00:17.2]}
27... h5 {[%clk 0:00:34.8]} 28. Be4 {[%clk 0:00:13.6]} 28... h4 {[%clk
0:00:31.3]} 29. Qd7 {[%clk 0:00:12.8]} 29... Rd8 {[%clk 0:00:31.3]} 30. Qe7
{[%clk 0:00:10.6]} 30... Bf6 {[%clk 0:00:26.8]} 31. Qb7 {[%clk 0:00:09.5]} 31...
Qxb7 {[%clk 0:00:20.1]} 32. Bxb7 {[%clk 0:00:10.4]} 32... a5 {[%clk 0:00:19.3]}
33. Rc1 {[%clk 0:00:10.4]} 33... Rb8 {[%clk 0:00:16.3]} 34. Rc8+ {[%clk
0:00:10.2]} 34... Rxc8 {[%clk 0:00:16.2]} 35. Bxc8 {[%clk 0:00:11.1]} 35... a4
{[%clk 0:00:16.6]} 36. Ba6 {[%clk 0:00:09.7]} 36... b3 {[%clk 0:00:15.6]} 37.
axb3 {[%clk 0:00:09.8]} 37... a3 {[%clk 0:00:15.8]} 38. Bc4 {[%clk 0:00:02.1]}
38... a2 {[%clk 0:00:15.7]} 39. b4 {[%clk 0:00:03]} 39... a1=Q+ {[%clk 0:00:15]}
40. Kg2 {[%clk 0:00:03.9]} 40... h3+ {[%clk 0:00:11.3]} 41. Kf3 {[%clk
0:00:03.1]} 41... Qf1 {[%clk 0:00:12.2]} 42. b5 {[%clk 0:00:02.8]} 42... Qg2+
{[%clk 0:00:12.3]} 43. Ke3 {[%clk 0:00:03.3]} 43... Qxh2 {[%clk 0:00:11.5]} 44.
b6 {[%clk 0:00:03.8]} 44... Qg2 {[%clk 0:00:11]} 45. f3 {[%clk 0:00:03.8]} 45...
Qxg3 {[%clk 0:00:11]} 46. Ke4 {[%clk 0:00:02.4]} 46... h2 {[%clk 0:00:10.9]} 47.
Bxe6 {[%clk 0:00:03.3]} 47... Qe5# {[%clk 0:00:10.1]} 0-1